bitfinex-derivatives/quotes_ETHF0:USTF0_20250912
["timestamp","ask_amount","ask_price","bid_price","bid_amount"]
[1757711290315,1.0583,4662.0,4661.9,0.8174]
[1757711290516,1.6408,4662.0,4661.9,1.0434]
[1757711290716,1.6408,4662.0,4661.9,1.22980788]
[1757711291621,1.6408,4662.0,4661.9,1.00380788]
[1757711291921,1.6408,4662.0,4661.9,1.22980788]
[1757711292124,1.6408,4662.0,4661.9,1.00380788]
[1757711292324,1.6408,4662.0,4661.9,1.22980788]
[1757711292523,1.6408,4662.0,4661.9,1.00380788]
[1757711292819,1.6408,4662.0,4661.9,0.81100788]
[1757711293225,0.5825,4662.4,4661.9,5.01310788]
[1757711293424,1.3979,4662.4,4662.3,0.8174]
[1757711294223,1.3979,4662.4,4662.3,0.3986]
[1757711294519,0.2429,4662.5,4662.1,0.226]
[1757711294520,0.8154,4662.2,4662.1,0.226]
[1757711294721,1.3979,4662.2,4662.1,0.226]
[1757711295126,1.3979,4662.2,4662.1,0.6246]
[1757711295626,1.3979,4662.2,4662.1,0.3986]
[1757711297219,0.6393,4661.5,4661.4,4.0252]
[1757711297419,1.2218,4661.5,4661.4,4.0252]
[1757711297724,1.2218,4661.5,4661.4,4.78710788]
[1757711297925,1.2218,4661.5,4661.4,5.01310788]
[1757711298128,0.9789,4661.5,4661.4,5.01310788]
[1757711298419,0.5825,4661.5,4661.4,5.01310788]
[1757711299720,0.2429,4662.0,4661.4,5.01310788]
[1757711299928,1.2218,4662.0,4661.9,1.00380788]
[1757711300227,1.6408,4662.0,4661.9,1.22880788]
[1757711300426,1.6408,4662.0,4661.9,1.80430788]
[1757711301529,1.6408,4662.0,4661.9,1.22880788]
[1757711301717,1.6408,4662.0,4661.9,1.00380788]
[1757711301923,1.6408,4662.0,4661.9,1.22880788]
[1757711302223,0.5825,4662.0,4661.9,1.80430788]
[1757711302716,0.5825,4662.4,4662.3,1.3929]
[1757711302926,1.3979,4662.4,4662.3,1.0424]
[1757711303314,1.3979,4662.4,4662.3,1.6179]
[1757711303924,1.3979,4662.4,4662.3,1.0424]
[1757711304320,0.3072,4662.5,4661.9,0.225]
[1757711304321,1.0583,4662.0,4661.9,0.225]
[1757711304626,1.6408,4662.0,4661.9,0.225]
[1757711305826,1.6408,4662.0,4661.9,0.6236]
[1757711306620,1.6408,4662.0,4661.9,0.225]
[1757711307329,1.67,4662.0,4661.9,0.225]
[1757711307828,1.67,4662.0,4661.4,5.30300456]
[1757711307829,1.0583,4662.0,4661.4,5.30300456]
[1757711308032,1.67,4662.0,4661.9,0.18640788]
[1757711308224,1.67,4662.0,4661.9,1.86420788]
[1757711308424,1.67,4662.0,4661.9,1.6778]
[1757711308829,0.6117,4662.4,4661.9,1.23990788]
[1757711309020,0.6117,4662.4,4662.3,1.4528]
[1757711309021,1.0038,4662.4,4662.3,1.4528]
[1757711309225,1.0038,4662.4,4662.3,1.63920788]
[1757711309425,1.0038,4662.4,4662.3,1.4528]
[1757711309832,0.6117,4662.4,4662.3,1.6778]
[1757711310229,1.0038,4662.4,4662.3,1.6778]
[1757711310930,1.3922,4662.4,4662.3,1.0535]
[1757711311833,1.3922,4662.4,4662.3,1.6778]
[1757711312033,1.0038,4662.4,4662.3,1.6778]
[1757711312335,1.3922,4662.4,4662.3,1.0535]
[1757711314832,1.3922,4662.4,4662.3,0.8285]
[1757711315033,1.3922,4662.4,4662.3,1.0535]
[1757711315436,0.7805,4662.4,4662.3,0.4196]
[1757711315933,0.7805,4662.4,4662.3,1.4528]
[1757711316133,1.3922,4662.4,4662.3,1.4528]
[1757711316332,1.3922,4662.4,4662.3,2.97250456]
[1757711316736,1.3922,4662.4,4662.3,1.4528]
[1757711319231,1.0038,4662.4,4662.3,1.4528]
[1757711321033,0.6117,4662.8,4662.3,1.4528]
[1757711321240,1.3922,4662.8,4662.7,0.60600788]
[1757711321440,1.3922,4662.8,4662.7,0.83100788]
[1757711321643,1.3922,4662.8,4662.7,0.6446]
[1757711326740,1.3922,4662.8,4662.7,0.83100788]
[1757711327644,0.0643,4662.9,4662.8,0.6152]
[1757711327844,0.0643,4662.9,4662.8,3.42317794]
[1757711328045,1.4335,4663.4,4663.3,0.4031]
[1757711328340,1.4335,4663.4,4663.3,1.09617338]
[1757711328543,1.4335,4663.4,4663.3,0.90966411]
[1757711329341,1.4335,4663.4,4663.3,1.32676411]
[1757711329751,1.4335,4663.4,4663.3,1.0452]
[1757711331250,1.4335,4663.4,4663.3,0.6281]
[1757711333554,0.6243,4663.4,4663.3,4.8682]
[1757711333747,1.4335,4663.4,4663.3,0.225]
[1757711333950,1.6643,4663.0,4662.9,1.4354]
[1757711334254,1.6643,4663.0,4662.9,1.6604]
[1757711334548,1.6643,4663.0,4662.9,2.33990456]
[1757711334755,1.6643,4663.0,4662.9,1.23160788]
[1757711335055,1.6643,4663.0,4662.9,2.75131244]
[1757711335256,1.6643,4663.0,4662.9,1.23160788]
[1757711335650,1.6643,4663.0,4662.9,1.00660788]
[1757711336056,1.6643,4663.0,4662.9,1.23160788]
[1757711336857,1.6643,4663.0,4662.9,0.58950788]
[1757711337057,1.04,4663.0,4662.9,0.225]
[1757711337258,1.04,4663.0,4662.8,3.2078]
[1757711337458,1.04,4663.0,4662.9,0.41140788]
[1757711337757,1.6561,4663.0,4662.9,0.41140788]
[1757711338057,1.04,4663.0,4662.8,3.2078]
[1757711338250,1.4141,4662.9,4662.8,3.2078]
[1757711338555,1.4141,4662.9,4662.8,3.4328]
[1757711338760,1.4141,4662.9,4662.8,3.2078]
[1757711339056,1.4141,4662.9,4662.8,3.4328]
[1757711340059,1.4141,4662.9,4662.8,3.8254]
[1757711341554,1.4141,4662.9,4662.8,3.2078]
[1757711341860,1.4141,4662.9,4662.8,3.4328]
[1757711342558,1.4141,4662.9,4662.8,3.8254]
[1757711344157,1.4141,4662.9,4662.8,4.7825]
[1757711344952,1.4141,4662.9,4662.8,4.2067]
[1757711349871,8.22026,4662.9,4662.0,0.5758]
[1757711350068,3.2078,4662.1,4662.0,0.8156]
[1757711350266,3.4328,4662.1,4662.0,0.8156]
[1757711350467,7.6473,4662.1,4662.0,0.8156]
[1757711350969,7.6473,4662.1,4660.8,0.18]
[1757711351168,3.2078,4661.1,4660.8,0.18]
[1757711352172,3.2078,4661.1,4660.5,0.2205]
[1757711353173,3.2078,4661.1,4661.0,0.7753]
[1757711355873,3.4328,4661.1,4661.0,0.7753]
[1757711356271,3.4328,4661.1,4661.0,1.1679]
[1757711363878,3.4328,4661.1,4661.0,1.73560788]
[1757711365884,3.2078,4661.1,4661.0,1.73560788]
[1757711366277,3.2078,4661.1,4661.0,1.5492]
[1757711366584,3.2078,4661.1,4661.0,0.7753]
[1757711367686,0.7823,4660.6,4660.0,0.2398]
[1757711367887,3.9901,4660.1,4660.0,0.6519]
[1757711368385,4.4909,4660.1,4660.0,0.83830788]
[1757711369688,4.4909,4660.1,4660.0,1.44230788]
[1757711370381,4.7159,4660.1,4660.0,1.44230788]
[1757711372381,4.7159,4660.1,4660.0,1.20250788]
[1757711372584,4.7159,4660.1,4660.0,1.43960788]
[1757711372782,4.7159,4660.1,4660.0,0.18640788]
[1757711373389,4.7159,4660.1,4660.0,0.79040788]
[1757711373691,1.2831,4659.6,4659.5,0.604]
[1757711373892,4.2151,4659.6,4659.5,1.2532]
[1757711374083,4.7159,4659.6,4659.5,1.43960788]
[1757711374283,4.7159,4659.6,4659.5,0.79040788]
[1757711374583,4.7159,4659.6,4659.5,0.604]
[1757711375182,4.7159,4659.6,4659.1,0.604]
[1757711375386,4.7159,4659.6,4659.3,0.18640788]
[1757711375586,1.2831,4659.5,4659.4,0.604]
[1757711375794,1.2831,4659.5,4659.4,1.20250788]
[1757711375978,1.2831,4659.5,4659.4,1.0161]
[1757711376381,0.7823,4659.5,4659.4,1.0161]
[1757711376791,0.7823,4659.5,4659.4,1.3933]
[1757711382095,1.2831,4659.5,4659.4,1.3933]
[1757711382990,1.5081,4659.5,4659.4,1.3933]
[1757711383192,1.0073,4659.5,4659.4,1.3933]
[1757711384995,1.5081,4659.5,4659.4,1.3933]
[1757711385294,1.0073,4659.5,4659.4,1.3933]
[1757711386791,1.0073,4659.5,4659.4,1.57970788]
[1757711388395,0.7823,4659.5,4659.4,1.57970788]
[1757711388596,0.225,4659.5,4659.4,1.57970788]
[1757711389690,0.617,4659.5,4659.4,1.57970788]
[1757711390191,3.2078,4659.6,4659.5,1.6761]
[1757711390593,3.2078,4659.6,4659.5,2.07711788]
[1757711390791,3.2078,4659.6,4659.5,1.86250788]
[1757711392795,3.2078,4659.6,4659.5,1.6761]
[1757711393101,3.2078,4659.6,4659.5,1.86250788]
[1757711395997,0.2382,4660.5,4659.5,5.25460788]
[1757711396202,0.9601,4660.4,4660.3,0.4302]
[1757711400706,1.3692,4660.4,4660.3,0.4302]
[1757711401407,0.2442,4660.0,4659.5,1.88740947]
[1757711401608,1.4425,4659.7,4659.6,0.4531]
[1757711402605,1.4425,4659.7,4659.6,0.6812]
[1757711403305,0.605,4659.7,4659.6,0.8237]
[1757711404505,1.0265,4659.7,4659.6,0.6812]
[1757711404706,1.0265,4659.7,4659.6,0.8237]
[1757711405016,0.605,4659.7,4659.6,0.8237]
[1757711405912,0.605,4660.4,4660.3,0.4562]
[1757711406120,0.605,4660.4,4660.3,0.8237]
[1757711406606,1.13723298,4663.4,4662.6,0.3867]
[1757711406802,0.2442,4664.0,4663.2,1.1998]
[1757711406803,0.605,4663.3,4663.2,1.1998]
[1757711407007,0.8492,4663.5,4663.4,0.8131]
[1757711407208,1.2707,4663.5,4663.4,0.99950788]
[1757711407408,1.2707,4663.5,4663.4,1.32929078]
[1757711407601,1.6867,4663.5,4663.4,0.93899078]
[1757711407808,1.6867,4663.5,4663.4,1.55729078]
[1757711408204,1.2707,4663.5,4663.4,1.94399078]
[1757711408917,1.6867,4663.5,4663.4,1.55729078]
[1757711409315,1.6867,4663.5,4663.4,1.87072605]
[1757711411317,8.8945,4663.5,4663.4,0.64321817]
[1757711412223,5.6867,4663.5,4663.4,0.64321817]
[1757711413725,5.6867,4663.5,4663.4,0.60930607]
[1757711415021,5.6867,4663.5,4663.4,0.60666657]
[1757711416325,5.6867,4663.5,4663.4,0.60654686]
[1757711416528,5.6867,4663.5,4663.4,1.02934686]
[1757711416529,1.6867,4663.5,4663.4,1.02934686]
[1757711416725,1.6867,4663.5,4663.4,1.60605474]
[1757711418319,1.6867,4663.5,4662.9,0.3867]
[1757711418320,1.6867,4663.5,4662.7,3.2078]
[1757711418517,1.6867,4663.5,4661.2,0.6102]
[1757711418518,3.2078,4662.8,4661.2,0.6102]
[1757711418722,32.22745,4663.4,4661.5,0.2493]
[1757711418723,3.2078,4661.8,4661.5,0.2493]
[1757711418924,3.4408,4661.8,4661.7,1.0197]
[1757711419727,3.4408,4661.8,4661.7,0.6102]
[1757711419928,7.4408,4661.8,4661.5,0.2493]
[1757711420428,7.4408,4661.8,4661.5,0.8595]
[1757711420928,7.4408,4661.8,4661.5,0.2493]
[1757711421128,7.4408,4661.8,4661.6,0.6102]
[1757711422424,3.4408,4661.8,4661.6,0.6102]
[1757711422628,3.4408,4661.8,4661.5,0.2493]
[1757711423428,3.4408,4661.8,4661.6,0.6102]
[1757711423624,3.4408,4661.8,4661.5,0.2493]
[1757711424833,3.4408,4661.8,4661.5,0.8595]
[1757711426530,3.4408,4661.8,4661.1,0.6102]
[1757711426734,3.2078,4661.2,4661.1,0.6102]
[1757711427030,3.4398,4661.2,4661.1,0.6102]
[1757711430833,3.4398,4661.2,4661.1,1.452]
[1757711432239,3.2078,4661.2,4661.1,1.452]
[1757711432537,3.4388,4661.2,4661.1,1.452]
[1757711434832,3.2078,4661.2,4661.1,1.452]
[1757711435032,3.2078,4661.7,4661.6,1.4635]
[1757711437731,0.231,4661.9,4661.6,1.4635]
[1757711437933,0.231,4661.9,4661.7,0.6217]
[1757711438131,0.231,4661.9,4661.8,1.4635]
[1757711438630,3.2078,4662.3,4661.8,1.4635]
[1757711438837,3.2078,4662.3,4661.5,0.2602]
[1757711438838,3.2078,4662.3,4662.2,1.0598]
[1757711439031,3.4378,4662.3,4662.2,1.0598]
[1757711444033,3.4378,4662.3,4662.2,1.4635]
[1757711449743,3.2078,4662.3,4662.2,1.4635]
[1757711449944,3.4368,4662.3,4662.2,1.4635]
[1757711459952,3.4368,4662.3,4662.1,0.6315]
[1757711463954,3.2078,4662.3,4662.1,1.0487]
[1757711464259,3.2078,4662.3,4662.2,1.459]
[1757711467359,0.228,4662.6,4662.2,1.459]
[1757711467552,0.228,4662.6,4662.5,1.7178]
[1757711467861,3.4348,4662.9,4662.8,0.8275]
[1757711468062,3.4348,4662.9,4662.8,1.459]
[1757711473170,3.4348,4662.9,4662.8,1.0487]
[1757711473369,3.4348,4662.9,4662.8,1.459]
[1757711474068,3.2078,4662.9,4662.8,1.459]
[1757711475165,3.2078,4662.9,4662.8,1.0487]
[1757711475471,3.2078,4662.9,4662.8,1.459]
[1757711477667,0.0643,4663.3,4662.8,1.459]
[1757711477865,0.5995,4664.4,4663.2,0.8275]
[1757711478068,1.4256,4664.4,4664.3,3.2078]
[1757711479074,0.5995,4664.4,4664.3,3.2078]
[1757711479573,0.5995,4664.4,4664.3,3.47681661]
[1757711480568,0.5995,4664.4,4664.3,7.47681661]
[1757711481277,0.254,4664.5,4664.3,7.47681661]
[1757711481479,0.8535,4664.5,4664.4,0.26901661]
[1757711482070,0.8535,4665.0,4664.4,4.26901661]
[1757711482265,0.8535,4665.0,4664.9,3.2078]
[1757711482467,0.8535,4665.0,4664.9,3.47681661]
[1757711482668,0.8535,4665.0,4664.9,7.47681661]
[1757711484775,1.2703,4665.0,4664.9,3.47681661]
[1757711484975,1.6796,4665.0,4664.9,3.70481661]
[1757711485168,1.6796,4665.0,4664.9,0.26901661]
[1757711490875,0.2543,4664.5,4664.3,3.2078]
[1757711491076,0.2543,4664.0,4663.7,3.2078]
[1757711491276,0.8361,4663.3,4663.2,3.2078]
[1757711491478,1.4597,4663.3,4663.2,3.4358]
[1757711491871,1.0317,4663.3,4663.2,3.4358]
[1757711492667,1.4597,4663.3,4663.2,3.4358]
[1757711492871,1.4597,4663.3,4663.2,3.4348]
[1757711497980,0.6236,4663.2,4662.7,3.2078]
[1757711498174,1.4597,4662.8,4662.7,3.2078]
[1757711498371,1.4597,4662.8,4662.7,3.4348]
[1757711501183,0.2543,4662.5,4662.0,3.2078]
[1757711501382,1.4597,4662.2,4662.1,0.227]
[1757711501580,0.2543,4664.5,4664.4,0.4274]
[1757711501783,0.6624,4664.5,4664.4,4.2646]
[1757711501979,1.0904,4664.5,4664.4,4.2656]
[1757711502285,1.0904,4664.5,4664.4,4.0376]
[1757711502485,1.0904,4664.5,4664.4,4.2656]
[1757711503672,1.714,4664.5,4664.4,4.2656]
[1757711505682,0.6236,4664.9,4664.4,4.5436]
[1757711505979,0.2543,4665.0,4664.4,4.2656]
[1757711506179,1.6666,4665.0,4664.9,3.639]
[1757711506381,1.6666,4665.0,4664.9,3.867]
[1757711506682,0.6017,4665.7,4665.6,0.8512]
[1757711506990,0.2543,4666.0,4665.7,1.1228]
[1757711507287,0.856,4666.0,4665.9,4.059]
[1757711507481,0.6017,4666.0,4665.9,4.3306]
[1757711507683,0.6017,4666.4,4665.9,4.3306]
[1757711507878,0.4154,4666.4,4666.3,0.8512]
[1757711508079,1.0171,4666.4,4666.3,0.8512]
[1757711508284,1.4123,4666.4,4666.3,0.8512]
[1757711516782,0.6017,4666.4,4666.3,1.1228]
[1757711517484,1.0172,4666.4,4666.3,1.1228]
[1757711517988,1.0172,4666.4,4666.3,0.8512]
[1757711518892,1.4095,4666.4,4666.3,1.0782]
[1757711520185,1.0172,4666.4,4666.3,1.0782]
[1757711520888,1.4095,4666.4,4666.3,0.6582]
[1757711523193,1.6799,4666.0,4665.9,3.6296]
[1757711523389,1.6799,4666.0,4665.9,4.2568]
[1757711523588,1.6799,4666.0,4665.9,4.0308]
[1757711523786,1.6799,4666.0,4665.9,4.2568]
[1757711527201,1.6799,4666.0,4665.9,3.4338]
[1757711527497,1.6799,4666.0,4665.9,3.8556]
[1757711528289,1.6799,4666.0,4665.9,4.2568]
[1757711532196,1.2876,4666.0,4665.9,4.5204]
[1757711532396,0.734,4666.5,4666.4,0.823]
[1757711532591,0.734,4666.5,4666.4,4.2568]
[1757711532791,0.6698,4666.5,4666.4,4.2568]
[1757711533096,0.6131,4666.5,4666.4,4.5204]
[1757711533297,0.2507,4667.0,4666.4,4.2568]
[1757711533599,1.2793,4667.0,4666.9,0.823]
[1757711533795,1.2793,4667.0,4666.9,1.049]
[1757711534599,1.2793,4667.0,4666.9,4.2568]
[1757711534997,0.6131,4667.0,4666.9,4.5204]
[1757711535394,0.6662,4667.5,4667.4,0.823]
[1757711535590,0.6662,4667.5,4667.4,1.049]
[1757711535795,1.0585,4667.5,4667.4,1.049]
[1757711535991,1.6716,4667.5,4667.4,1.049]
[1757711536597,1.6716,4667.5,4667.4,4.2568]
[1757711538199,0.8721,4667.5,4667.4,4.2568]
[1757711538698,1.2876,4667.5,4667.4,4.2568]
[1757711539302,1.2876,4667.5,4667.4,4.5204]
[1757711539499,0.6131,4667.8,4667.5,0.2636]
[1757711539699,0.8721,4668.0,4667.9,0.823]
[1757711539899,0.8721,4668.0,4667.9,4.5204]
[1757711540499,0.6131,4668.0,4667.9,4.5204]
[1757711540896,0.6131,4668.4,4668.3,0.823]
[1757711541100,1.0286,4668.4,4668.3,1.049]
[1757711541502,0.6131,4668.4,4668.3,1.3126]
[1757711543408,0.259,4669.5,4668.3,1.3126]
[1757711543409,0.259,4669.5,4668.8,1.4532]
[1757711543609,0.5855,4668.9,4668.8,4.887]
[1757711545903,0.17,4668.9,4668.8,4.887]
[1757711546302,0.17,4668.9,4668.8,4.661]
[1757711546504,0.17,4668.9,4668.8,4.887]
[1757711546708,0.17,4668.9,4668.8,4.661]
[1757711546908,0.17,4668.9,4668.8,4.887]
[1757711549512,0.6336,4669.6,4669.5,1.3786]
[1757711549706,0.4786,4669.8,4669.7,0.7851]
[1757711550010,3.2078,4669.9,4669.7,1.0111]
[1757711550211,3.2078,4670.7,4669.8,3.8013]
[1757711550507,1.048,4670.0,4669.9,1.6046]
[1757711551104,1.4513,4670.0,4669.9,1.6046]
[1757711552010,1.7074,4670.0,4669.9,1.6046]
[1757711552309,1.4513,4670.0,4669.9,1.6046]
[1757711552910,1.048,4670.0,4669.9,1.6046]
[1757711553509,1.0767,4670.5,4670.4,0.7851]
[1757711553811,1.0767,4670.5,4670.4,1.6036]
[1757711554002,1.7103,4670.5,4670.4,1.6036]
[1757711554208,1.7103,4670.5,4670.4,1.0101]
[1757711556012,1.7103,4670.5,4670.4,1.6036]
[1757711559011,1.4513,4670.5,4670.4,1.6036]
[1757711559209,1.048,4670.5,4670.4,1.6036]
[1757711560010,0.6336,4670.5,4670.4,1.6036]
[1757711560218,0.6336,4670.9,4670.4,0.225]
[1757711560407,1.4513,4670.9,4670.8,0.7851]
[1757711560612,1.4513,4670.9,4670.8,1.6036]
[1757711562315,1.4513,4670.9,4670.8,0.6155]
[1757711562715,1.4513,4670.9,4670.8,3.8233]
[1757711563529,1.048,4670.9,4670.8,4.8114]
[1757711566623,0.8417,4670.9,4670.8,3.2078]
[1757711566823,1.4462,4670.9,4670.8,3.4328]
[1757711567017,1.4462,4670.9,4670.8,3.8552]
[1757711567825,0.8417,4670.4,4670.3,3.2078]
[1757711568025,1.4462,4670.4,4670.3,3.8552]
[1757711568321,1.4462,4670.4,4670.3,4.8485]
[1757711568832,1.4462,4670.4,4670.3,4.0339]
[1757711569027,1.4462,4670.4,4670.3,4.2589]
[1757711571327,1.4462,4670.4,4670.3,3.2078]
[1757711571526,1.4462,4670.4,4670.3,3.4328]
[1757711573730,1.4462,4670.4,4669.8,3.2078]
[1757711573731,0.2303,4670.0,4669.8,3.2078]
[1757711573934,1.4462,4669.9,4669.8,3.4328]
[1757711575935,1.4462,4669.9,4669.8,3.8552]
[1757711580737,1.4462,4669.9,4669.8,4.8531]
[1757711585444,1.4462,4669.9,4669.3,3.2078]
[1757711585643,1.0483,4669.5,4669.4,0.6193]
[1757711585840,0.2303,4670.0,4669.5,0.6067]
[1757711586140,1.6123,4670.0,4669.9,1.3922]
[1757711586542,1.6123,4670.0,4669.9,0.7855]
[1757711590747,0.5705,4670.4,4669.9,3.2078]
[1757711590945,1.382,4670.4,4670.3,0.3943]
[1757711591350,1.382,4670.4,4670.3,1.3922]
[1757711592849,1.382,4670.4,4670.3,0.3943]
[1757711593248,1.382,4670.4,4670.3,1.3922]
[1757711593853,1.382,4670.4,4670.3,0.7855]
[1757711594852,0.9677,4670.4,4670.3,1.3922]
[1757711595042,0.5705,4670.7,4670.3,0.7855]
[1757711595249,4.0193,4670.8,4670.7,1.3922]
[1757711595851,4.5898,4670.8,4670.7,1.3922]
[1757711596052,4.5898,4670.8,4670.7,0.7855]
[1757711596953,4.5898,4670.8,4670.7,0.3943]
[1757711599655,4.5898,4670.8,4670.7,1.3922]
[1757711600158,1.382,4670.8,4670.7,1.3922]
[1757711600555,0.9677,4670.8,4670.7,1.3922]
[1757711604660,0.5705,4670.8,4670.7,1.6172]
[1757711604856,0.0642,4671.2,4670.7,1.6172]
[1757711605163,0.0642,4671.2,4671.0,1.3922]
[1757711605164,0.9677,4671.1,4671.0,1.3922]
[1757711605354,1.382,4671.1,4671.0,1.3922]
[1757711605956,1.382,4671.1,4671.0,0.7855]
[1757711606162,1.382,4671.1,4671.0,1.3922]
[1757711607359,1.382,4671.1,4671.0,0.7855]
[1757711607552,1.382,4671.1,4670.7,0.225]
[1757711607758,0.3815,4670.5,4670.4,4.6184]
[1757711607964,0.9627,4670.5,4670.4,5.0575]
[1757711608157,1.5851,4670.5,4670.4,4.8434]
[1757711608356,1.5851,4670.5,4670.4,4.2375]
[1757711608562,1.5851,4670.5,4670.4,4.8434]
[1757711608753,1.5851,4670.5,4670.4,3.4328]
[1757711609153,1.5851,4670.5,4670.4,4.8434]
[1757711614264,1.3472,4670.5,4670.4,4.8434]
[1757711615068,1.3472,4670.5,4670.4,4.6184]
[1757711615269,1.3472,4670.5,4670.4,4.8434]
[1757711615967,1.3472,4670.5,4670.4,4.6184]
[1757711616169,1.5851,4670.5,4670.4,4.8434]
[1757711621371,1.3472,4670.5,4670.4,4.8434]
[1757711622674,0.9627,4670.5,4670.4,4.8434]
[1757711624568,0.5812,4670.7,4670.5,0.6059]
[1757711624769,0.9627,4670.7,4670.6,1.6356]
[1757711625271,1.3472,4670.7,4670.6,0.225]
[1757711625478,1.3472,4670.7,4670.6,0.619]
[1757711625776,1.3472,4670.7,4670.6,1.5961]
[1757711625976,1.53505813,4670.7,4670.6,1.5961]
[1757711626279,1.53507821,4670.7,4670.6,1.5961]
[1757711627074,1.3472,4670.7,4670.6,1.5961]
[1757711627276,0.9538,4670.0,4669.9,4.5835]
[1757711627476,0.5545,4670.4,4669.9,4.2386]
[1757711627676,0.9947,4670.5,4670.4,1.3757]
[1757711627875,0.9947,4670.5,4670.4,1.6007]
[1757711628277,1.5492,4670.5,4670.4,1.6007]
[1757711628672,1.5492,4670.5,4669.9,3.2078]
[1757711628873,1.5492,4670.5,4670.4,0.3986]
[1757711633676,0.3993,4669.8,4669.7,0.899]
[1757711633883,1.3261,4669.8,4669.7,0.899]
[1757711638986,1.87014091,4669.8,4669.7,0.899]
[1757711639192,1.3261,4669.8,4669.7,0.899]
[1757711640185,0.5545,4669.8,4669.7,2.2754]
[1757711640485,0.9878,4670.2,4670.1,0.389]
[1757711640692,2.13433109,4670.2,4670.1,1.3764]
[1757711640888,0.54373109,4670.2,4670.1,2.2754]
[1757711641092,0.6028,4670.5,4670.1,2.2754]
[1757711641287,0.9722,4670.5,4670.4,0.7918]
[1757711641495,0.9722,4670.5,4670.4,1.3764]
[1757711641890,1.3666,4670.5,4670.4,1.3764]
[1757711642091,1.61,4670.5,4670.4,1.3764]
[1757711642397,0.6028,4670.4,4670.1,0.899]
[1757711642593,1.3666,4670.2,4670.1,2.2754]
[1757711644995,0.9722,4670.2,4670.1,2.2754]
[1757711645190,1.0017,4671.0,4670.9,0.4028]
[1757711645400,1.0017,4671.0,4670.9,1.3764]
[1757711645794,1.6045,4671.0,4670.9,1.3764]
[1757711646399,1.3666,4671.0,4670.9,1.3764]
[1757711646602,0.9722,4671.0,4670.9,1.3764]
[1757711647496,0.667,4671.2,4671.0,0.5846]
[1757711647695,0.667,4671.2,4671.1,0.7918]
[1757711647998,0.667,4671.2,4671.1,1.3764]
[1757711648601,0.0642,4671.2,4671.1,2.2754]
[1757711648998,0.667,4671.2,4671.1,2.2754]
[1757711649898,1.0364,4671.2,4671.1,2.2754]
[1757711652100,1.0364,4671.2,4671.1,2.4994]
[1757711652907,0.0642,4671.2,4671.1,5.7072]
[1757711653908,1.4308,4671.2,4671.1,4.8986]
[1757711654211,1.4308,4671.2,4671.1,5.7072]
[1757711654709,1.4308,4671.2,4671.1,5.1226]
[1757711655205,1.4308,4671.2,4671.1,5.7072]
[1757711656508,1.4308,4671.2,4671.1,5.1226]
[1757711656705,1.3666,4671.2,4671.1,5.7072]
[1757711657308,0.9722,4671.2,4671.1,5.7072]
[1757711657609,0.4674,4672.0,4671.3,0.7918]
[1757711657610,0.6028,4671.4,4671.3,0.7918]
[1757711657906,0.6028,4671.4,4671.3,1.3764]
[1757711658100,0.9722,4671.4,4671.3,1.3764]
[1757711658807,1.3666,4671.4,4671.3,1.3764]
[1757711659012,0.6028,4671.4,4671.3,1.3764]
[1757711659415,0.9722,4671.4,4671.3,1.3764]
[1757711661009,1.3666,4671.4,4671.3,1.3764]
[1757711663318,0.6028,4671.4,4671.3,1.3764]
[1757711663519,1.3666,4671.4,4671.2,0.224]
[1757711663721,1.3666,4671.4,4671.3,0.4028]
[1757711665025,0.6028,4671.4,4671.3,1.3764]
[1757711665230,0.9722,4671.4,4671.3,1.3764]
[1757711665414,0.9722,4671.4,4671.3,2.2754]
[1757711665825,1.3666,4671.4,4671.3,2.2754]
[1757711673927,1.3666,4671.4,4671.3,2.2892]
[1757711676130,1.91124705,4671.4,4671.3,2.2892]
[1757711676322,1.3666,4671.4,4671.3,2.2892]
[1757711676522,1.91124778,4671.4,4671.3,2.2892]
[1757711678533,1.91124778,4671.4,4671.3,1.6908]
[1757711678734,1.51684778,4671.4,4671.3,2.2552]
[1757711679537,1.89554778,4671.4,4671.3,2.2552]
[1757711680837,1.89554778,4671.4,4671.3,1.2651]
[1757711681037,1.89554778,4671.4,4671.3,2.2552]
[1757711682038,1.3509,4671.4,4671.3,2.2552]
[1757711682337,1.89518309,4671.4,4671.3,1.6568]
[1757711682636,26.89518309,4671.4,4671.3,1.6568]
[1757711684333,26.89518309,4671.4,4671.3,1.2651]
[1757711684539,26.89518309,4671.4,4671.3,0.899]
[1757711684940,26.89518309,4671.4,4671.3,1.2651]
[1757711685629,26.3509,4671.4,4671.3,1.2651]
[1757711685833,26.89521806,4671.4,4671.3,1.2651]
[1757711687135,26.89521806,4671.4,4671.3,0.899]
[1757711688037,25.54431806,4671.4,4671.3,0.899]
[1757711688231,26.82861806,4671.4,4671.3,0.899]
[1757711692345,26.82861806,4671.4,4671.3,1.2564]
[1757711694348,26.82861806,4671.4,4671.3,1.6133]
[1757711694549,26.82861806,4671.4,4671.3,2.1764]
[1757711694849,26.2843,4671.4,4671.3,2.1764]
[1757711697057,26.2843,4671.4,4671.3,2.3994]
[1757711699758,26.2843,4671.4,4671.3,1.8363]
[1757711699960,26.2843,4671.4,4671.3,2.3753]
[1757711700556,26.2843,4671.4,4671.3,1.8363]
[1757711701056,26.2843,4671.4,4671.3,2.3753]
[1757711701956,25.9208,4671.4,4671.3,6.58936999]
[1757711702159,25.0,4671.4,4671.3,6.58936999]